{"text_format":"3","workbook":"xlsx","n_sheets":6,"sheets":["Evidencija poziva prodaje","Kontakt informacije klijenta","Pre pozivanja","Pozivanje prvi put","Informacije o prodaji","Praćenje"],"not_rendered":{"external_links":1,"defined_names":14},"read":"whole","date_system":"1900"}

{"sheet":"Evidencija poziva prodaje","index":0,"n_rows":13,"n_cols":7,"rows_kept":13}
[null," Ime preduzeća"]
[null,"Evidencija poziva prodaje"]
[null,"Poziv #","Klijent","Preduzeće","Datum","Vreme","Napomene"]
[null,1,"Ljubomir Blagojević",{"$f":"IF('Evidencija poziva prodaje'!$C4=\"\",\"\",IFERROR(VLOOKUP('Evidencija poziva prodaje'!$C4,KontaktInformacijeKlijenata[],2,0),\"Not Found\"))","v":"Proseware, Inc."},{"$f":"TODAY()-5","v":"2016-10-13"},"08:30:00"]
[null,2,"Mihajlo Balašević",{"$f":"IF('Evidencija poziva prodaje'!$C5=\"\",\"\",IFERROR(VLOOKUP('Evidencija poziva prodaje'!$C5,KontaktInformacijeKlijenata[],2,0),\"Not Found\"))","v":"Litware, Inc."},{"$f":"TODAY()-5","v":"2016-10-13"},"09:00:00"]
[null,3,"Mihailo Ćosić",{"$f":"IF('Evidencija poziva prodaje'!$C6=\"\",\"\",IFERROR(VLOOKUP('Evidencija poziva prodaje'!$C6,KontaktInformacijeKlijenata[],2,0),\"Not Found\"))","v":"Northwind Traders"},"2016-10-13","09:30:00"]
[null,4,"Radmilo Bogić",{"$f":"IF('Evidencija poziva prodaje'!$C7=\"\",\"\",IFERROR(VLOOKUP('Evidencija poziva prodaje'!$C7,KontaktInformacijeKlijenata[],2,0),\"Not Found\"))","v":"Lucerne Publishing"},"2016-10-13","10:00:00"]
[null,5,"Blagoje Jugović",{"$f":"IF('Evidencija poziva prodaje'!$C8=\"\",\"\",IFERROR(VLOOKUP('Evidencija poziva prodaje'!$C8,KontaktInformacijeKlijenata[],2,0),\"Not Found\"))","v":"Margie's Travel"},"2016-10-13","10:30:00"]
[null,6,"Ljubomir Blagojević",{"$f":"IF('Evidencija poziva prodaje'!$C9=\"\",\"\",IFERROR(VLOOKUP('Evidencija poziva prodaje'!$C9,KontaktInformacijeKlijenata[],2,0),\"Not Found\"))","v":"Proseware, Inc."},{"$f":"TODAY()-3","v":"2016-10-15"},"11:00:00"]
[null,7,"Mihajlo Balašević",{"$f":"IF('Evidencija poziva prodaje'!$C10=\"\",\"\",IFERROR(VLOOKUP('Evidencija poziva prodaje'!$C10,KontaktInformacijeKlijenata[],2,0),\"Not Found\"))","v":"Litware, Inc."},{"$f":"TODAY()-3","v":"2016-10-15"},"11:30:00"]
[null,8,"Ljubomir Blagojević",{"$f":"IF('Evidencija poziva prodaje'!$C11=\"\",\"\",IFERROR(VLOOKUP('Evidencija poziva prodaje'!$C11,KontaktInformacijeKlijenata[],2,0),\"Not Found\"))","v":"Proseware, Inc."},{"$f":"TODAY()-1","v":"2016-10-17"},"12:00:00"]
[null,9,"Blagoje Jugović",{"$f":"IF('Evidencija poziva prodaje'!$C12=\"\",\"\",IFERROR(VLOOKUP('Evidencija poziva prodaje'!$C12,KontaktInformacijeKlijenata[],2,0),\"Not Found\"))","v":"Margie's Travel"},{"$f":"TODAY()-1","v":"2016-10-17"},"12:30:00"]
[null,10,"Blagoje Jugović",{"$f":"IF('Evidencija poziva prodaje'!$C13=\"\",\"\",IFERROR(VLOOKUP('Evidencija poziva prodaje'!$C13,KontaktInformacijeKlijenata[],2,0),\"Not Found\"))","v":"Margie's Travel"},{"$f":"TODAY()","v":"2016-10-18"},"13:00:00"]

{"sheet":"Kontakt informacije klijenta","index":1,"n_rows":8,"n_cols":8,"rows_kept":8}
[null,{"$f":"Imepreduzeća","v":" Ime preduzeća"}]
[null,"Kontakt informacije klijenta"]
[null,"Ime klijenta","Ime preduzeća","Adresa","Grad, poštanski broj","Primarni telefon","Sekundarni telefon","E-adresa"]
[null,"Mihajlo Balašević","Litware, Inc.","Glavna ulica 100","Ada, 24430","(024) 555-0135","(024) 555-0136","mihajlo@litwareinc.com"]
[null,"Radmilo Bogić","Lucerne Publishing","Druga ulica 567","Sombor, 25101","(025) 555-0198","(025) 555-0199","radmilo@lucernepublishing.com"]
[null,"Blagoje Jugović","Margie's Travel","Ulica pomorandži 987","Mladenovac, 11400","(011) 555-0125","(011) 555-0126","blagoje@margiestravel.com"]
[null,"Mihailo Ćosić","Northwind Traders","Treća avenija 890","Pančevo, 26101","(013) 555-0175","(013) 555-0176","mihailo@northwindtraders.com"]
[null,"Ljubomir Blagojević","Proseware, Inc.","Velika ulica 123","Leskovac, 16000","(016) 555-0150","(016) 555-0151","ljubomir@proseware.com"]

{"sheet":"Pre pozivanja","index":2,"n_rows":13,"n_cols":3,"rows_kept":13}
[null,{"$f":"Imepreduzeća","v":" Ime preduzeća"}]
[null,"Lista za proveru poziva prodajnog odeljenja"]
[null,"Lista za proveru","Pre pozivanja"]
[null,null,"Pregled istorije klijenta"]
[null,null,"Pregled istorije poslodavca klijenta"]
[null,null,"Pregled prioriteta i prodajne strategije"]
[null,null,"Dodajte stavku"]
[null,null,"Dodajte stavku"]
[null,null,"Dodajte stavku"]
[null,null,"Dodajte stavku"]
[null,null,"Dodajte stavku"]
[null,null,"Dodajte stavku"]
[null,null,"Dodajte stavku"]

{"sheet":"Pozivanje prvi put","index":3,"n_rows":13,"n_cols":3,"rows_kept":13}
[null,{"$f":"Imepreduzeća","v":" Ime preduzeća"}]
[null,"Lista za proveru poziva prodajnog odeljenja"]
[null,"Lista za proveru","Pozivanje prvi put"]
[null,null,"Direktan poziv odgovarajuće osobe"]
[null,null,"Jasan uvod"]
[null,null,"Dodajte stavku"]
[null,null,"Dodajte stavku"]
[null,null,"Dodajte stavku"]
[null,null,"Dodajte stavku"]
[null,null,"Dodajte stavku"]
[null,null,"Dodajte stavku"]
[null,null,"Dodajte stavku"]
[null,null,"Dodajte stavku"]

{"sheet":"Informacije o prodaji","index":4,"n_rows":13,"n_cols":3,"rows_kept":13}
[null,{"$f":"Imepreduzeća","v":" Ime preduzeća"}]
[null,"Lista za proveru poziva prodajnog odeljenja"]
[null,"Lista za proveru","Informacije o prodaji"]
[null,null,"Jasan i privlačan uvod za proizvod/uslugu"]
[null,null,"Pokrivanje svih osnovnih informacija"]
[null,null,"Pominjanje prisustva na vebu (npr. veb sajt, društvene mreže)"]
[null,null,"Dodajte stavku"]
[null,null,"Dodajte stavku"]
[null,null,"Dodajte stavku"]
[null,null,"Dodajte stavku"]
[null,null,"Dodajte stavku"]
[null,null,"Dodajte stavku"]
[null,null,"Dodajte stavku"]

{"sheet":"Praćenje","index":5,"n_rows":13,"n_cols":3,"rows_kept":13}
[null,{"$f":"Imepreduzeća","v":" Ime preduzeća"}]
[null,"Lista za proveru poziva prodajnog odeljenja"]
[null,"Lista za proveru","Informacije o praćenju"]
[null,null,"Kontakt informacije klijenta"]
[null,null,"Lične informacije o klijentu"]
[null,null,"Željene postavke klijenta"]
[null,null,"Da li je ponovo planiran kontakt?"]
[null,null,"Da li je obavljena prodaja?"]
[null,null,"Dodajte stavku"]
[null,null,"Dodajte stavku"]
[null,null,"Dodajte stavku"]
[null,null,"Dodajte stavku"]
[null,null,"Dodajte stavku"]